bitfinex/quotes_SOLUSD_20220212
["timestamp","ask_amount","ask_price","bid_price","bid_amount"]
[1644674770507,0.25,95.449,95.362,44.98703315]
[1644674770705,0.25,95.449,95.363,5.49]
[1644674770909,5.24,95.448,95.363,0.25]
[1644674771309,0.25,95.447,95.363,0.25]
[1644674771509,10.70366791,95.447,95.363,0.25]
[1644674771709,15.7284,95.44,95.364,5.24]
[1644674771908,29.9617,95.439,95.361,23.9031]
[1644674772112,32.59536791,95.439,95.349,5.24]
[1644674772309,0.25,95.438,95.349,5.24]
[1644674772509,34.48837706,95.436,95.349,5.24]
[1644674772708,5.491,95.435,95.349,5.24]
[1644674772910,15.7323,95.42,95.349,5.24]
[1644674773111,5.241,95.419,95.301,23.9462]
[1644674773314,22.9294,95.418,95.301,29.1892]
[1644674773513,5.243,95.417,95.301,29.1892]
[1644674773711,48.47673952,95.416,95.302,42.77572448]
[1644674773911,5.243,95.415,95.303,5.243]
[1644674774115,7.87666791,95.415,95.303,5.243]
[1644674774313,15.7377,95.39,95.304,0.25]
[1644674774515,5.244,95.389,95.304,0.25]
[1644674774712,7.87766791,95.389,95.288,0.25]
[1644674774913,2.38366791,95.388,95.281,5.244]
[1644674775116,5.244,95.387,95.271,5.244]
[1644674775312,5.244,95.387,95.26,90.2895]
[1644674775313,35.62031971,95.386,95.267,39.8089359]
[1644674775513,29.0845,95.385,95.268,5.245]
[1644674775713,31.71816791,95.385,95.263,5.245]
[1644674775912,31.71816791,95.385,95.25,15.14]
[1644674776118,2.38366791,95.384,95.251,28.5553]
[1644674776313,2.38366791,95.384,95.262,0.25]
[1644674776314,15.14,95.38,95.262,0.25]
[1644674776613,5.245,95.379,95.27,15.7428]
[1644674776812,29.0845,95.385,95.271,5.495]
[1644674777014,23.8395,95.385,95.28,15.14]
[1644674777213,0.25,95.384,95.281,27.38944962]
[1644674777417,0.25,95.384,95.281,29.77311753]
[1644674777713,11.95,95.384,95.29,15.7381]
[1644674777915,5.244,95.383,95.29,15.7381]
[1644674778114,5.244,95.383,95.291,0.25]
[1644674778313,0.25,95.382,95.291,0.25]
[1644674779113,15.7407,95.38,95.28,15.7407]
[1644674779315,0.25,95.379,95.273,5.244]
[1644674779515,7.87866791,95.379,95.273,5.244]
[1644674779717,2.38366791,95.378,95.273,5.244]
[1644674779918,5.245,95.377,95.273,5.244]
[1644674780120,29.4568,95.377,95.274,36.58734908]
[1644674780318,2.38366791,95.376,95.275,5.495]
[1644674780521,5.245,95.375,95.25,67.6158]
[1644674780821,15.7445,95.36,95.26,15.7441]
[1644674781021,5.246,95.359,95.241,52.0049]
[1644674781226,32.11836791,95.359,95.252,5.246]
[1644674781430,49.91751943,95.358,95.254,48.8020227]
[1644674781626,5.246,95.357,95.255,5.246]
[1644674781830,7.87966791,95.357,95.256,0.25]
[1644674782028,2.38366791,95.356,95.257,5.246]
[1644674782222,5.496,95.355,95.258,0.25]
[1644674782823,15.7476,95.34,95.258,0.25]
[1644674783025,46.66682974,95.338,95.258,0.25]
[1644674783223,5.496,95.337,95.258,0.25]
[1644674783423,5.496,95.337,95.259,5.246]
[1644674783630,0.25,95.337,95.256,0.25]
[1644674783826,5.246,95.336,95.255,0.25]
[1644674784223,5.246,95.336,95.253,22.8742]
[1644674784224,0.25,95.335,95.254,0.25]
[1644674784631,15.7491,95.33,95.253,22.8742]
[1644674784842,5.497,95.329,95.231,5.246]
[1644674785039,5.497,95.329,95.21,52.4968]
[1644674785040,7.88066791,95.329,95.228,5.247]
[1644674785240,7.88066791,95.329,95.156,113.0]
[1644674785241,15.14,95.32,95.199,5.247]
[1644674785442,5.248,95.319,95.181,52.8652]
[1644674785640,55.36196791,95.319,95.191,5.249]
[1644674785840,55.36196791,95.319,95.182,5.249]
[1644674786039,46.69828115,95.318,95.19,15.14]
[1644674786243,5.499,95.317,95.191,5.499]
[1644674786443,7.88266791,95.317,95.191,5.499]
[1644674786643,2.38366791,95.316,95.191,5.499]
[1644674786840,43.78369533,95.289,95.191,7.88266791]
[1644674787042,51.20369533,95.289,95.191,7.88266791]
[1644674787243,0.25,95.288,95.191,7.88266791]
[1644674787442,0.25,95.288,95.191,7.63266791]
[1644674787743,15.757,95.28,95.191,5.249]
[1644674788141,0.25,95.279,95.191,5.249]
[1644674789641,0.25,95.279,95.192,0.25]
[1644674789842,0.25,95.279,95.193,5.25]
[1644674790045,0.25,95.279,95.193,4.75]
[1644674790243,0.25,95.279,95.191,0.25]
[1644674790244,0.25,95.279,95.192,5.25]
[1644674790444,0.25,95.279,95.183,34.84924844]
[1644674790445,15.7595,95.27,95.183,34.84924844]
[1644674790643,41.16393072,95.269,95.183,34.84924844]
[1644674790842,41.41393072,95.269,95.183,34.84924844]
[1644674791243,2.38366791,95.268,95.183,34.84924844]
[1644674791447,5.25,95.267,95.183,34.84924844]
[1644674791648,35.91393072,95.269,95.184,7.88366791]
[1644674792044,35.91393072,95.269,95.185,2.38366791]
[1644674792244,35.91393072,95.269,95.186,0.25]
[1644674792446,5.25,95.268,95.186,0.25]
[1644674793046,0.25,95.267,95.186,0.25]
[1644674793246,5.25,95.266,95.186,0.25]
[1644674793446,5.25,95.266,95.183,34.84924844]
[1644674793447,5.25,95.266,95.184,0.25]
[1644674793644,0.25,95.265,95.184,0.25]
[1644674793848,5.5,95.268,95.19,15.7564]
[1644674793849,5.25,95.264,95.19,15.7564]
[1644674794047,0.25,95.268,95.19,15.7564]
[1644674794250,0.25,95.268,95.191,0.25]
[1644674794648,2.38366791,95.267,95.182,5.25]
[1644674794847,7.63366791,95.267,95.182,5.25]
[1644674795046,0.25,95.266,95.182,5.25]
[1644674795248,5.25,95.265,95.182,5.25]
[1644674795448,5.25,95.265,95.182,42.58056489]
[1644674795748,0.25,95.264,95.183,2.38366791]
[1644674796149,0.25,95.264,95.182,42.58056489]
[1644674796349,5.25,95.263,95.182,42.58056489]
[1644674796756,0.25,95.262,95.182,44.9642328]
[1644674796958,0.25,95.262,95.183,5.25]
[1644674797151,35.91393072,95.269,95.184,0.25]
[1644674797351,0.25,95.268,95.184,2.63366791]
[1644674797553,0.25,95.268,95.185,2.38366791]
[1644674797753,0.25,95.268,95.186,0.25]
[1644674798153,0.25,95.268,95.187,2.38366791]
[1644674798357,0.25,95.268,95.188,0.25]
[1644674798554,35.91393072,95.269,95.19,15.7567]
[1644674798755,5.25,95.287,95.191,5.5]
[1644674798957,5.25,95.303,95.2,15.14]
[1644674799154,5.249,95.306,95.201,23.8194]
[1644674799358,5.249,95.315,95.202,5.249]
[1644674799653,2.92649758,95.313,95.202,7.63266791]
[1644674799855,8.17449758,95.312,95.203,20.36341184]
[1644674800055,5.43439501,95.311,95.204,5.248]
[1644674800256,5.498,95.311,95.205,0.25]
[1644674800455,2.92649758,95.307,95.21,15.752]
[1644674800657,2.92649758,95.307,95.211,5.248]
[1644674800857,0.25,95.306,95.211,5.248]
[1644674801157,5.43439501,95.305,95.211,5.248]
[1644674801362,5.498,95.304,95.212,24.6085]
[1644674801562,5.43439501,95.303,95.22,15.7518]
[1644674801863,5.498,95.302,95.222,42.58056489]
[1644674802059,0.25,95.302,95.222,42.58056489]
[1644674802259,10.68239501,95.301,95.223,5.498]
[1644674802463,0.25,95.302,95.223,5.498]
[1644674803072,13.07287548,95.301,95.223,5.498]
[1644674803261,0.25,95.3,95.223,5.498]
[1644674803461,5.248,95.299,95.223,5.498]
[1644674803763,5.69120757,95.298,95.223,5.498]
[1644674804061,54.39625706,95.297,95.223,5.498]
[1644674804260,15.7553,95.29,95.223,5.248]
[1644674804463,10.68920757,95.289,95.212,24.6085]
[1644674804662,5.44120757,95.288,95.212,24.6085]
[1644674804861,5.249,95.287,95.212,24.6085]
[1644674805062,5.44120757,95.286,95.212,24.6085]
[1644674805264,0.25,95.285,95.193,5.249]
[1644674805461,40.14084931,95.279,95.193,0.25]
[1644674805762,5.25,95.278,95.2,15.7548]
[1644674805964,40.14084931,95.279,95.201,5.249]
[1644674806162,40.14084931,95.279,95.202,15.55045433]
[1644674806464,2.92649758,95.305,95.203,5.249]
[1644674806661,5.45157594,95.307,95.204,24.4028]
[1644674806861,0.25,95.304,95.205,5.248]
[1644674807065,0.25,95.304,95.205,7.88166791]
[1644674807563,5.46376607,95.303,95.221,43.44748298]
[1644674807864,5.46376607,95.303,95.23,15.14]
[1644674808062,5.46376607,95.31,95.231,24.6253]
[1644674808262,0.25,95.309,95.231,27.25896791]
[1644674808462,0.25,95.309,95.232,2.38366791]
[1644674808763,5.46376607,95.308,95.233,0.25]
[1644674809063,5.46376607,95.308,95.234,2.38366791]
[1644674809262,5.46376607,95.308,95.235,0.25]
[1644674809464,2.92649758,95.304,95.235,0.25]
[1644674809665,2.92649758,95.305,95.236,2.38366791]
[1644674809862,2.92649758,95.306,95.24,15.7477]
[1644674810264,5.46376607,95.308,95.241,2.63366791]
[1644674810662,5.46376607,95.308,95.242,2.38366791]
[1644674810864,8.39026365,95.308,95.243,5.247]
[1644674811064,2.92649758,95.307,95.243,5.497]
[1644674811266,2.92649758,95.307,95.244,2.38366791]
[1644674811467,2.92649758,95.291,95.244,2.38366791]
[1644674811663,2.92649758,95.29,95.245,5.497]
[1644674811864,2.92649758,95.29,95.25,15.7457]
[1644674812065,2.92649758,95.29,95.251,5.248]
[1644674812366,2.92649758,95.293,95.252,43.44748298]
[1644674812564,2.92649758,95.293,95.251,2.63366791]
[1644674812763,2.92649758,95.291,95.251,0.25]
[1644674813163,2.92649758,95.287,95.251,0.25]
[1644674813364,2.92649758,95.287,95.242,0.25]
[1644674813570,2.92649758,95.276,95.242,5.498]
[1644674813764,2.92649758,95.276,95.26,15.7451]
[1644674813964,5.10764917,95.255,95.242,5.498]
[1644674814866,5.10764917,95.255,95.242,0.25]
[1644674815267,5.10764917,95.255,95.223,5.249]
[1644674815268,5.10764917,95.255,95.224,0.25]
[1644674815665,5.10764917,95.255,95.22,15.7492]
[1644674815867,5.10764917,95.255,95.221,5.25]
[1644674816468,5.10764917,95.255,95.214,5.25]
[1644674817068,5.10764917,95.255,95.23,15.7495]
[1644674818871,5.10764917,95.255,95.231,0.25]
[1644674820172,5.10764917,95.255,95.215,0.25]
[1644674820772,5.10764917,95.255,95.216,2.38366791]
[1644674820973,5.10764917,95.255,95.217,5.25]
[1644674821275,5.10764917,95.255,95.217,0.25]
[1644674821474,5.10764917,95.255,95.218,2.38366791]
[1644674821875,5.10764917,95.255,95.22,15.7514]
[1644674822274,5.10764917,95.255,95.221,2.63366791]
[1644674822678,5.10764917,95.255,95.222,2.38366791]
[1644674822876,5.10764917,95.255,95.221,0.25]
[1644674823075,0.25,95.254,95.202,5.25]
[1644674824079,5.25,95.253,95.202,5.25]
[1644674824275,0.25,95.252,95.202,5.25]
[1644674824476,5.25,95.251,95.203,0.25]
[1644674824876,0.25,95.25,95.203,0.25]
[1644674825080,5.25,95.249,95.203,0.25]
[1644674825278,0.25,95.248,95.203,0.25]
[1644674825477,5.25,95.247,95.203,0.25]
[1644674825976,0.25,95.246,95.189,0.25]
[1644674826386,5.251,95.245,95.171,22.5444]
[1644674826778,0.25,95.244,95.171,22.5444]
[1644674826981,0.25,95.244,95.16,15.7604]
[1644674827177,46.83117483,95.242,95.16,15.7604]
[1644674827380,5.252,95.241,95.16,15.7604]
[1644674827679,5.502,95.241,95.16,15.7604]
[1644674827878,5.502,95.241,95.161,0.25]
[1644674829380,15.7633,95.24,95.161,0.25]
[1644674829580,5.252,95.239,95.161,0.25]
[1644674829783,7.88566791,95.239,95.152,5.252]
[1644674829983,23.1662,95.238,95.14,15.7637]
[1644674830184,5.502,95.237,95.14,15.7637]
[1644674830382,7.88566791,95.237,95.14,15.7637]
[1644674830782,15.765,95.23,95.14,15.7637]
[1644674830981,5.252,95.229,95.14,15.7637]
[1644674831184,5.502,95.229,95.141,0.25]
[1644674831381,5.502,95.229,95.142,5.252]
[1644674831680,5.502,95.229,95.143,0.25]
[1644674831881,5.502,95.229,95.144,5.252]
[1644674832080,5.502,95.229,95.145,24.9944]
[1644674832282,5.502,95.229,95.15,15.7633]
[1644674832481,5.46704,95.229,95.15,15.7633]
[1644674832684,5.46704,95.229,95.151,5.502]
[1644674834504,0.25,95.229,95.151,5.502]
[1644674834705,15.7668,95.22,95.151,5.502]
[1644674834907,46.91899828,95.219,95.151,0.25]
[1644674835107,52.42099828,95.219,95.151,0.25]
[1644674835310,52.42099828,95.219,95.147,0.25]
[1644674835704,52.42099828,95.219,95.146,0.25]
[1644674837006,52.42099828,95.219,95.146,1.7333996]
[1644674837205,51.92099828,95.219,95.146,0.25]
[1644674838006,46.41899828,95.219,95.15,15.7631]
[1644674838209,5.253,95.248,95.151,0.25]
[1644674838406,5.10764917,95.255,95.154,1.4833996]
[1644674838605,5.10764917,95.255,95.171,0.48]
[1644674838808,5.10764917,95.255,95.18,15.14]
[1644674839305,44.65530965,95.254,95.2,15.7531]
[1644674839505,44.65530965,95.254,95.202,26.21535237]
[1644674839705,44.65530965,95.254,95.203,0.25]
[1644674839907,44.65530965,95.254,95.204,5.25]
[1644674840105,5.10764917,95.255,95.204,5.25]
[1644674840308,5.10764917,95.255,95.205,0.25]
[1644674840510,5.10764917,95.255,95.21,30.8929]
[1644674840707,5.10764917,95.255,95.211,0.25]
[1644674840908,5.10764917,95.255,95.212,5.25]
[1644674841105,5.10764917,95.255,95.212,7.63366791]
[1644674841307,5.10764917,95.255,95.213,0.25]
[1644674841511,5.10764917,95.255,95.214,5.25]
[1644674841710,5.10764917,95.255,95.22,15.748]
[1644674841913,5.10764917,95.255,95.221,5.25]
[1644674842114,5.10764917,95.255,95.217,36.97862436]
[1644674842308,5.10764917,95.255,95.218,5.5]
[1644674842708,5.10764917,95.255,95.23,15.7496]
[1644674843112,5.10764917,95.255,95.231,0.25]
[1644674843510,5.10764917,95.255,95.218,5.25]
[1644674844108,5.10764917,95.255,95.2,15.14]
[1644674844711,5.10764917,95.255,95.21,15.7526]
[1644674845614,5.10764917,95.255,95.191,5.25]
[1644674845813,0.25,95.254,95.162,1.4833996]
[1644674846011,7.88366791,95.254,95.155,1.4833996]
[1644674846213,1.4833996,95.247,95.137,1.4833996]
[1644674846412,5.252,95.246,95.135,24.685]
[1644674846612,7.88566791,95.246,95.136,5.252]
[1644674846814,2.38366791,95.245,95.136,5.252]
[1644674847011,37.99146345,95.243,95.137,37.78279407]
[1644674847211,5.502,95.242,95.138,5.252]
[1644674847411,15.7642,95.24,95.14,15.7649]
[1644674847611,5.252,95.239,95.14,15.7649]
[1644674847812,0.25,95.239,95.141,0.25]
[1644674848013,5.252,95.238,95.141,0.25]
[1644674848218,0.25,95.237,95.141,0.25]
[1644674848414,5.252,95.236,95.141,0.25]
[1644674848627,15.7666,95.22,95.129,1.4833996]
[1644674848827,5.503,95.219,95.124,1.4833996]
[1644674849022,5.503,95.219,95.12,15.767]
[1644674849222,7.88666791,95.219,95.12,15.767]
[1644674849421,41.79899723,95.218,95.121,46.6254628]
[1644674849623,5.253,95.217,95.121,46.6254628]
[1644674849823,5.503,95.217,95.122,1.7333996]
[1644674850023,5.503,95.217,95.13,15.7663]
[1644674850223,2.38366791,95.216,95.131,0.25]
[1644674850426,5.253,95.215,95.131,0.25]
[1644674850624,5.503,95.215,95.131,0.25]
[1644674850833,2.38366791,95.214,95.131,0.25]
[1644674851025,5.253,95.213,95.131,0.25]
[1644674851225,5.253,95.213,95.11,15.7687]
[1644674851226,15.7683,95.21,95.11,15.7687]
[1644674851427,5.253,95.209,95.11,15.7687]
[1644674851625,2.63366791,95.209,95.11,15.7687]
[1644674851825,5.253,95.208,95.11,15.7687]
[1644674852024,2.63366791,95.209,95.111,5.253]
[1644674852430,2.63366791,95.209,95.11,15.7687]
[1644674852431,2.38366791,95.207,95.11,15.7687]
[1644674852625,5.253,95.206,95.11,15.7687]
[1644674852826,47.89325448,95.199,95.11,15.7687]
[1644674853027,5.253,95.198,95.11,15.2687]
[1644674853227,5.503,95.198,95.11,15.2687]
[1644674853629,5.503,95.198,95.111,0.25]
[1644674855030,5.503,95.198,95.112,5.253]
[1644674855331,5.503,95.198,95.113,0.25]
[1644674855530,5.503,95.198,95.115,25.13141193]
[1644674855732,5.503,95.198,95.12,15.7679]
[1644674856233,5.503,95.198,95.121,0.25]
[1644674856535,2.38366791,95.197,95.121,0.25]
[1644674856739,5.503,95.196,95.101,5.253]
[1644674856937,0.25,95.196,95.117,5.253]
[1644674857133,15.7714,95.19,95.101,5.503]
[1644674857432,5.505,95.189,95.101,0.25]
[1644674857636,5.505,95.189,95.103,47.78560499]
[1644674857833,5.505,95.189,95.104,5.505]
[1644674858432,2.38366791,95.188,95.104,5.505]
[1644674858636,15.7735,95.18,95.104,5.255]
[1644674858835,5.255,95.179,95.104,5.255]
[1644674859034,2.63366791,95.179,95.104,5.255]
[1644674859232,46.86039006,95.178,95.093,25.32264104]
[1644674859435,41.60539006,95.178,95.093,25.32264104]
[1644674859635,5.255,95.177,95.094,5.255]
[1644674859860,0.25,95.176,95.095,0.25]
[1644674860060,5.255,95.175,95.096,5.255]
[1644674860259,5.255,95.175,95.097,0.25]
[1644674860460,5.255,95.175,95.098,5.255]
[1644674860661,41.35539006,95.178,95.098,5.255]
[1644674860861,41.35539006,95.178,95.099,0.25]
[1644674861060,41.35539006,95.178,95.1,5.255]
[1644674861261,41.35539006,95.178,95.101,0.25]
[1644674861460,41.35539006,95.178,95.102,5.255]
[1644674861760,41.35539006,95.178,95.103,0.25]
[1644674861960,41.35539006,95.178,95.104,5.255]
[1644674862362,41.35539006,95.178,95.105,0.25]
[1644674862561,41.35539006,95.178,95.106,5.255]
[1644674862765,0.25,95.177,95.107,0.25]
[1644674862962,0.25,95.177,95.109,37.03358468]
[1644674863362,0.25,95.177,95.11,0.25]
[1644674863563,0.25,95.177,95.11,16.0199]
[1644674864264,41.35539006,95.178,95.11,16.0199]
[1644674865562,41.35539006,95.178,95.11,15.7699]
[1644674865761,0.25,95.177,95.11,15.7699]
[1644674865965,5.255,95.176,95.11,15.7699]
[1644674866365,0.25,95.175,95.1,15.7716]
[1644674866564,5.255,95.174,95.1,15.7716]
[1644674866863,0.25,95.173,95.101,5.505]
[1644674867063,5.255,95.172,95.101,5.255]
[1644674867263,0.25,95.171,95.075,46.71496881]
[1644674867473,5.256,95.17,95.074,0.25]
[1644674867771,0.25,95.169,95.075,5.256]
[1644674867972,15.7772,95.16,95.074,0.25]
[1644674868171,5.256,95.159,95.075,5.256]
[1644674868371,0.25,95.159,95.075,5.256]
[1644674868573,47.93781403,95.157,95.076,34.6662016]
[1644674868772,5.506,95.156,95.076,34.6662016]
[1644674868973,5.506,95.156,95.077,5.256]
[1644674869171,0.25,95.156,95.077,5.256]
[1644674869973,5.256,95.155,95.059,5.256]
[1644674870179,7.63966791,95.155,95.045,5.256]
[1644674870380,0.25,95.154,95.042,5.257]
[1644674870577,5.257,95.153,95.059,5.257]
[1644674870775,15.7786,95.15,95.06,57.53116937]
[1644674870979,5.257,95.149,95.061,5.257]
[1644674871176,0.25,95.149,95.061,5.257]
[1644674871381,0.25,95.152,95.062,24.1436]
[1644674871584,0.25,95.152,95.063,5.257]
[1644674871782,0.25,95.152,95.064,0.25]
[1644674871981,0.25,95.152,95.065,5.257]
[1644674872377,5.507,95.156,95.07,15.7757]
[1644674874578,5.507,95.156,95.071,0.25]
[1644674875478,5.507,95.156,95.08,15.7749]
[1644674875878,5.507,95.156,95.081,0.25]
[1644674878983,2.38366791,95.155,95.076,5.256]
[1644674879187,17.2613996,95.15,95.076,5.256]
[1644674879384,5.256,95.149,95.076,5.256]
[1644674879584,7.88966791,95.149,95.076,5.256]
[1644674879785,2.63366791,95.149,95.076,5.256]
[1644674880888,15.7808,95.14,95.076,5.256]
[1644674881290,45.29292495,95.139,95.076,5.256]
[1644674881490,40.03592495,95.139,95.047,5.256]
[1644674881689,5.257,95.138,95.047,5.256]
[1644674882090,0.25,95.137,95.047,5.256]
[1644674882287,5.257,95.136,95.047,5.256]
[1644674882488,16.297,95.136,95.047,5.256]
[1644674882689,0.25,95.135,95.059,0.25]
[1644674882888,15.7824,95.13,95.059,0.25]
[1644674883287,0.25,95.129,95.059,0.25]
[1644674883487,5.257,95.128,95.059,0.25]
[1644674883688,0.25,95.127,95.059,0.25]
[1644674883890,5.258,95.126,95.059,0.25]
[1644674884292,0.25,95.125,95.059,0.25]
[1644674884488,15.7835,95.12,95.048,0.25]
[1644674884688,36.46942702,95.119,95.034,0.25]
[1644674884890,41.72742702,95.119,95.034,0.25]
[1644674885089,41.72742702,95.119,95.035,2.38366791]
[1644674885289,41.72742702,95.119,95.036,0.25]
[1644674885690,41.72742702,95.119,95.037,2.38366791]
[1644674885889,15.7847,95.11,95.037,2.38366791]
[1644674886106,5.259,95.109,95.038,0.25]
[1644674886306,5.509,95.109,95.038,0.25]
[1644674886511,5.509,95.109,95.039,2.38366791]
[1644674886713,0.25,95.109,95.04,0.25]
[1644674886916,0.25,95.109,95.041,5.259]
[1644674887108,0.25,95.109,95.041,7.64266791]
[1644674887311,0.25,95.109,95.042,2.63366791]
[1644674887512,0.25,95.109,95.043,5.258]
[1644674887711,0.25,95.109,95.044,0.25]
[1644674887910,0.25,95.109,95.045,5.258]
[1644674888112,0.25,95.117,95.045,5.258]
[1644674888312,0.25,95.117,95.046,0.25]
[1644674888516,5.258,95.116,95.046,0.25]
[1644674888712,0.25,95.115,95.046,0.25]
[1644674889111,5.258,95.114,95.046,0.25]
[1644674889311,36.21942702,95.119,95.046,0.25]
[1644674889312,5.258,95.117,95.046,0.25]
[1644674889517,5.258,95.118,95.047,2.38366791]
[1644674889713,36.21942702,95.119,95.048,0.25]
[1644674890113,36.21942702,95.119,95.05,15.14]
[1644674890315,36.21942702,95.119,95.051,0.25]
[1644674890518,36.21942702,95.119,95.051,7.89166791]
[1644674890715,36.21942702,95.119,95.051,42.5016102]
[1644674890916,36.21942702,95.119,95.052,2.38366791]
[1644674891116,1.4833996,95.159,95.053,5.258]
[1644674891315,5.257,95.158,95.054,23.3972]
[1644674891516,1.4833996,95.163,95.055,29.4688]
[1644674891716,5.257,95.162,95.06,15.14]
[1644674891915,5.257,95.162,95.061,5.256]
[1644674891916,1.4833996,95.154,95.061,5.256]
[1644674892118,1.4833996,95.152,95.061,5.506]
[1644674892315,36.11121774,95.153,95.061,5.256]
[1644674892316,1.4833996,95.142,95.061,5.256]
[1644674892515,1.4833996,95.142,95.06,15.14]
[1644674892719,1.4833996,95.14,95.06,15.14]
[1644674892916,15.7797,95.14,95.06,30.9181]
[1644674893117,0.25,95.139,95.06,30.9181]
[1644674893316,0.25,95.139,95.061,5.257]
[1644674893816,41.3802355,95.137,95.062,0.25]
[1644674894016,5.257,95.136,95.062,0.25]
[1644674894216,1.4833996,95.13,95.062,0.25]
[1644674894720,41.3802355,95.137,95.063,2.38366791]
[1644674895215,5.257,95.138,95.07,15.7765]
[1644674895417,1.4833996,95.144,95.07,15.7765]
[1644674895617,1.4833996,95.146,95.071,26.04976791]
[1644674895819,1.4833996,95.147,95.071,26.04976791]
[1644674896018,1.4833996,95.144,95.072,2.38366791]
[1644674896221,1.4833996,95.145,95.073,26.45036653]
[1644674896419,39.30973234,95.146,95.073,0.25]
[1644674896619,39.30973234,95.146,95.074,7.64066791]
[1644674896820,0.25,95.145,95.08,15.7742]
[1644674897323,0.25,95.145,95.081,0.25]
[1644674897522,39.30973234,95.146,95.081,40.3995904]
[1644674897523,39.05973234,95.146,95.081,40.3995904]
[1644674898120,1.4833996,95.145,95.081,40.3995904]
[1644674898521,1.4833996,95.144,95.081,40.3995904]
[1644674898922,1.4833996,95.143,95.081,40.3995904]
[1644674899122,1.4833996,95.143,95.082,2.38366791]
[1644674899322,39.05973234,95.146,95.083,0.25]
[1644674899522,1.4833996,95.14,95.083,5.506]
[1644674899723,1.4833996,95.137,95.083,0.25]
[1644674899925,1.7333996,95.139,95.083,0.25]
[1644674900323,1.4833996,95.136,95.083,0.25]
[1644674900522,1.4833996,95.136,95.081,0.25]
[1644674900724,1.4833996,95.134,95.081,0.25]
[1644674900923,1.4833996,95.133,95.081,0.25]
[1644674901123,0.25,95.133,95.081,0.25]
[1644674901322,42.56333898,95.126,95.081,0.25]
[1644674901523,1.4833996,95.125,95.081,0.25]
[1644674901930,1.4833996,95.124,95.081,0.25]
[1644674902724,1.4833996,95.122,95.081,0.25]
[1644674903124,1.4833996,95.121,95.081,0.25]
[1644674903525,1.4833996,95.118,95.081,0.25]
[1644674903725,1.4833996,95.116,95.066,5.257]
[1644674903924,1.4833996,95.115,95.066,5.257]
[1644674904124,1.4833996,95.114,95.066,5.257]
[1644674904528,1.4833996,95.115,95.066,5.257]
[1644674904726,1.4833996,95.114,95.066,5.257]
[1644674904927,1.4833996,95.116,95.066,5.257]
[1644674905136,1.4833996,95.116,95.072,0.25]
[1644674905324,1.4833996,95.111,95.072,0.25]
[1644674905726,42.56333898,95.126,95.072,0.25]
[1644674905727,1.4833996,95.11,95.072,0.25]
[1644674906124,1.4833996,95.108,95.072,0.25]
[1644674906526,44.33617681,95.107,95.072,0.25]
[1644674906727,0.25,95.106,95.055,5.258]
[1644674906932,1.4833996,95.101,95.054,23.3972]
[1644674907227,0.25,95.106,95.054,23.3972]
[1644674907228,1.7333996,95.1,95.054,23.3972]
[1644674907426,1.4833996,95.097,95.054,23.3972]
[1644674907634,1.4833996,95.096,95.054,23.3972]
[1644674907829,7.19,95.097,95.023,5.258]